bitfinex/quotes_BTCUSD_20241117
["timestamp","ask_amount","ask_price","bid_price","bid_amount"]
[1731832971492,0.00036022,90695.0,90694.0,0.22960821]
[1731832971702,0.00036022,90695.0,90694.0,0.1543364]
[1731832972126,0.1578519,90704.0,90698.0,0.110255]
[1731832972331,0.1578519,90704.0,90699.0,0.00694366]
[1731832972562,0.110247,90706.0,90700.0,0.00694366]
[1731832972787,0.110244,90708.0,90700.0,0.00694366]
[1731832972997,0.110246,90707.0,90700.0,0.11719566]
[1731832973221,0.04715495,90711.0,90702.0,0.023]
[1731832973431,0.04661013,90711.0,90703.0,0.24157847]
[1731832973656,0.04661013,90711.0,90704.0,0.330745]
[1731832973892,0.04661013,90711.0,90707.0,0.110244]
[1731832974101,0.04661013,90711.0,90709.0,0.110242]
[1731832974539,0.04661013,90711.0,90710.0,0.00303098]
[1731832975034,0.04661013,90711.0,90710.0,0.12020779]
[1731832975245,0.04661013,90711.0,90710.0,0.00996679]
[1731832975501,0.00116758,90711.0,90710.0,0.12020779]
[1731832976380,0.007,90728.0,90710.0,0.12020779]
[1731832976381,0.110211,90735.0,90710.0,0.26903694]
[1731832976592,0.16549168,90732.0,90731.0,0.110215]
[1731832976800,0.16549168,90732.0,90731.0,0.14015081]
[1731832977007,0.0008558,90739.0,90731.0,0.02099326]
[1731832977214,0.220419,90736.0,90731.0,0.01803163]
[1731832977423,0.110213,90734.0,90731.0,0.01803163]
[1731832977637,0.0008558,90739.0,90731.0,0.00693581]
[1731832977852,0.156909,90737.0,90731.0,0.00693581]
[1731832978062,0.156909,90737.0,90732.0,0.00693581]
[1731832978063,0.110213,90733.0,90732.0,0.00693581]
[1731832978273,0.110211,90735.0,90732.0,0.00693581]
[1731832978510,0.110211,90735.0,90717.0,0.110232]
[1731832978511,0.0467,90737.0,90733.0,0.00693581]
[1731832978732,0.0467,90737.0,90722.0,0.02495331]
[1731832978733,0.156908,90737.0,90734.0,0.00693581]
[1731832978946,0.156908,90737.0,90735.0,0.00693581]
[1731832979187,0.0467,90737.0,90736.0,0.00693581]
[1731832979395,0.156909,90737.0,90736.0,0.00693581]
[1731832980243,0.156908,90737.0,90736.0,0.00693581]
[1731832980456,0.01,90738.0,90736.0,0.00692285]
[1731832980661,0.120207,90738.0,90737.0,0.00692285]
[1731832981118,0.120207,90738.0,90729.0,0.03973803]
[1731832981321,0.01,90738.0,90737.0,0.00692267]
[1731832981747,0.120207,90738.0,90737.0,0.00692267]
[1731832981964,0.01,90738.0,90737.0,0.00692267]
[1731832982393,0.01,90738.0,90737.0,0.01800008]
[1731832982602,0.01,90738.0,90737.0,0.02122447]
[1731832982840,0.01,90738.0,90737.0,0.04988509]
[1731832983104,0.01,90738.0,90737.0,0.08396147]
[1731832983332,0.01,90738.0,90737.0,0.06596242]
[1731832983554,0.01,90738.0,90737.0,0.07703801]
[1731832983787,0.01,90738.0,90737.0,0.32912091]
[1731832984024,0.01,90738.0,90737.0,0.38913162]
[1731832984282,0.01,90738.0,90737.0,0.26330247]
[1731832984516,0.01,90738.0,90737.0,0.50539791]
[1731832984748,0.01,90738.0,90737.0,0.5101154]
[1731832985932,0.0108556,90738.0,90737.0,0.5101154]
[1731832986392,0.0108556,90738.0,90737.0,0.37041095]
[1731832986600,0.0108556,90738.0,90737.0,0.4962401]
[1731832987038,0.0028556,90738.0,90737.0,0.51006077]
[1731832987865,0.16634748,90751.0,90742.0,0.138202]
[1731832988081,0.16634748,90751.0,90742.0,0.32053422]
[1731832988276,0.16634748,90751.0,90742.0,0.38568575]
[1731832988483,0.16634748,90751.0,90742.0,0.39950642]
[1731832989093,0.16634748,90751.0,90742.0,0.40641473]
[1731832989296,0.0008558,90751.0,90742.0,0.40641473]
[1731832989497,0.0008558,90751.0,90742.0,0.39529163]
[1731832990633,0.0008558,90751.0,90742.0,0.40631072]
[1731832990878,0.00041297,90763.0,90749.0,0.110192]
[1731832991080,0.00041297,90763.0,90750.0,0.10530582]
[1731832991081,0.16549168,90753.0,90750.0,0.10530582]
[1731832991293,0.11058997,90763.0,90751.0,0.01377387]
[1731832991503,0.11058997,90763.0,90752.0,0.07541889]
[1731832991504,0.110178,90762.0,90752.0,0.07541889]
[1731832991714,0.110178,90762.0,90761.0,0.01100807]
[1731832991948,0.110178,90762.0,90761.0,0.02202716]
[1731832992153,0.00041297,90763.0,90761.0,0.02479296]
[1731832992358,0.00041297,90763.0,90762.0,0.01790602]
[1731832992566,0.11058997,90763.0,90762.0,0.01790602]
[1731832992776,0.11058997,90763.0,90762.0,0.09332491]
[1731832992931,0.11058997,90763.0,90762.0,0.07955085]
[1731832993147,0.00041297,90763.0,90762.0,0.07202817]
[1731832993416,0.00041297,90763.0,90762.0,0.09268855]
[1731832993547,0.00041297,90763.0,90762.0,0.1549033]
[1731832993751,0.00041297,90763.0,90762.0,0.14801637]
[1731832994016,0.00041297,90763.0,90762.0,0.19597962]
[1731832994216,0.00041297,90763.0,90762.0,0.22368934]
[1731832994863,0.00041297,90763.0,90762.0,0.23470821]
[1731832995271,0.00041297,90763.0,90762.0,0.17306319]
[1731832995470,0.00041297,90763.0,90762.0,0.19606319]
[1731832995704,0.0008558,90772.0,90770.0,0.110167]
[1731832995899,0.0008558,90772.0,90764.0,0.220351]
[1731832995900,0.0008558,90772.0,90771.0,0.16042565]
[1731832996139,0.0008558,90772.0,90771.0,0.31441776]
[1731832996459,0.0008558,90772.0,90771.0,0.27407212]
[1731832996667,0.0008558,90772.0,90771.0,0.28095891]
[1731832996867,0.0008558,90772.0,90771.0,0.28315914]
[1731832997081,0.0194271,90776.0,90775.0,0.110162]
[1731832997496,0.0194271,90776.0,90775.0,0.15619208]
[1731832997700,0.0194271,90776.0,90775.0,0.11584644]
[1731832997904,0.0194271,90776.0,90775.0,0.12961567]
[1731832998106,7e-05,90781.0,90780.0,0.110156]
[1731832998417,7e-05,90781.0,90780.0,0.1203761]
[1731832998651,7e-05,90781.0,90780.0,0.14119901]
[1731832998857,7e-05,90781.0,90780.0,0.15496833]
[1731832999212,7e-05,90781.0,90780.0,0.16598495]
[1731832999854,7e-05,90781.0,90780.0,0.16818788]
[1731833000299,7e-05,90781.0,90780.0,0.19118788]
[1731833000531,4e-05,90800.0,90785.0,0.13815]
[1731833000744,4e-05,90800.0,90785.0,0.4362417]
[1731833000961,4e-05,90800.0,90785.0,0.46630999]
[1731833001159,4e-05,90800.0,90785.0,0.45818453]
[1731833001488,4e-05,90800.0,90785.0,0.46919882]
[1731833001690,4e-05,90800.0,90785.0,0.477323]
[1731833001824,4e-05,90800.0,90785.0,0.46919882]
[1731833002049,0.15924318,90804.0,90797.0,0.110135]
[1731833002223,0.11013,90802.0,90798.0,0.0558163]
[1731833002445,0.110127,90804.0,90799.0,0.05248899]
[1731833002661,0.110127,90804.0,90800.0,0.05248732]
[1731833002863,0.110128,90804.0,90801.0,0.03791228]
[1731833003108,0.11013,90801.0,90800.0,0.0110134]
[1731833003548,0.10513,90801.0,90800.0,0.02202758]
[1731833003971,0.10513,90801.0,90800.0,0.02534525]
[1731833004176,0.10513,90801.0,90800.0,0.02121574]
[1731833004397,0.0774,90810.0,90800.0,0.03498319]
[1731833004603,0.110129,90803.0,90801.0,0.01376745]
[1731833004806,0.110129,90803.0,90802.0,0.01789807]
[1731833005026,0.110129,90803.0,90802.0,0.03854973]
[1731833005283,0.220244,90808.0,90802.0,0.05231718]
[1731833005490,0.110126,90805.0,90803.0,0.05231718]
[1731833005700,0.0774,90810.0,90804.0,0.0137675]
[1731833005950,0.0774,90810.0,90805.0,0.03166506]
[1731833005951,0.110124,90806.0,90805.0,0.03166506]
[1731833006180,0.110124,90806.0,90805.0,0.05231882]
[1731833006387,0.110124,90806.0,90805.0,0.07298112]
[1731833006630,0.0774,90810.0,90805.0,0.05232866]
[1731833006858,0.0774,90810.0,90806.0,0.01376798]
[1731833007063,0.110123,90808.0,90807.0,0.02065197]
[1731833007264,0.0774,90810.0,90807.0,0.03166636]
[1731833007474,0.0774,90810.0,90808.0,0.01708]
[1731833007684,0.0774,90810.0,90809.0,0.02065197]
[1731833007895,0.0774,90810.0,90809.0,0.03166636]
[1731833008098,0.0774,90810.0,90809.0,0.03497767]
[1731833008318,0.0488,90811.0,90809.0,0.03166636]
[1731833008542,0.0488,90811.0,90810.0,0.03166636]
[1731833008753,0.158918,90811.0,90810.0,0.03166636]
[1731833009020,0.12664022,90811.0,90810.0,0.03497697]
[1731833009181,0.12664022,90811.0,90810.0,0.03166636]
[1731833009406,0.01652222,90811.0,90810.0,0.03166636]
[1731833009630,0.12664022,90811.0,90810.0,0.03166636]
[1731833009842,0.01652222,90811.0,90810.0,0.03166636]
[1731833010065,0.12664022,90811.0,90810.0,0.03166636]
[1731833010962,0.01737852,90811.0,90810.0,0.03166636]
[1731833011177,0.12749652,90811.0,90810.0,0.03166636]
[1731833012430,0.01737852,90811.0,90810.0,0.03166636]
[1731833012649,0.01737852,90811.0,90810.0,0.03495771]
[1731833013336,0.12644107,90811.0,90810.0,0.03166636]
[1731833013572,0.36238822,90811.0,90810.0,0.00330259]
[1731833013776,0.110124,90806.0,90805.0,0.01079741]
[1731833014002,0.110127,90804.0,90803.0,0.01079741]
[1731833014211,0.110121,90809.0,90785.0,0.0022028]
[1731833014418,0.10906255,90808.0,90779.0,0.11626531]
[1731833014643,0.16549168,90805.0,90780.0,0.00831396]
[1731833014874,0.110125,90806.0,90781.0,0.11626527]
[1731833015117,0.16549168,90806.0,90794.0,0.110138]
[1731833015332,0.16549168,90806.0,90783.0,0.220305]
[1731833015333,0.110127,90804.0,90791.0,0.110142]
[1731833015774,0.110127,90804.0,90792.0,0.110141]
[1731833015996,0.16549168,90806.0,90792.0,0.00330548]
[1731833016204,0.11013,90802.0,90792.0,0.00330548]
[1731833016430,0.0784,90801.0,90793.0,0.00330477]
[1731833016669,0.0784,90801.0,90790.0,0.02]
[1731833016670,0.110135,90797.0,90790.0,0.02]
[1731833016881,0.0784,90801.0,90791.0,0.110142]
[1731833017107,0.11013,90802.0,90791.0,0.11344813]
[1731833017307,0.110133,90800.0,90791.0,0.00330613]
[1731833017519,0.16549168,90805.0,90791.0,0.00330613]
[1731833017997,0.1228,90801.0,90791.0,0.00330613]
[1731833018197,0.110141,90792.0,90791.0,0.00330613]
[1731833018408,0.220266,90799.0,90791.0,0.00330613]
[1731833018553,0.110141,90793.0,90780.0,0.04485046]
[1731833018758,0.110141,90793.0,90779.0,0.220313]
[1731833018759,0.110141,90793.0,90781.0,0.110155]
[1731833018988,0.110141,90793.0,90782.0,0.110153]
[1731833019456,0.110137,90796.0,90784.0,0.110151]
[1731833019603,0.110137,90796.0,90783.0,0.00331394]
[1731833019604,0.110133,90799.0,90783.0,0.11346594]
[1731833019806,0.16549168,90800.0,90783.0,0.11346594]
[1731833019807,0.16549168,90800.0,90786.0,0.110148]
[1731833020009,0.110135,90797.0,90786.0,0.110148]
[1731833020207,0.16549168,90800.0,90787.0,0.00331671]
[1731833020484,0.220264,90800.0,90787.0,0.00331671]
[1731833020697,0.110136,90797.0,90786.0,0.110148]
[1731833020909,0.110135,90798.0,90788.0,0.003316]
[1731833021141,0.1228,90801.0,90787.0,0.00331458]
[1731833021346,0.110133,90799.0,90788.0,0.110146]
[1731833021563,0.110133,90799.0,90788.0,0.1134627]
[1731833021954,0.1228,90801.0,90789.0,0.110144]
[1731833022176,0.1228,90801.0,90788.0,0.0033167]
[1731833022177,0.0766,90809.0,90788.0,0.0033167]
[1731833022399,0.16549168,90804.0,90790.0,0.22360329]
[1731833022621,0.110125,90806.0,90794.0,0.110138]
[1731833022822,0.110125,90806.0,90790.0,0.00331529]
[1731833023031,0.110125,90806.0,90795.0,0.110138]
[1731833023460,0.110126,90805.0,90796.0,0.00313177]
[1731833023675,0.110128,90804.0,90796.0,0.00313177]
[1731833023876,0.220244,90808.0,90796.0,0.04691493]
[1731833024091,0.220244,90808.0,90796.0,0.04378316]
[1731833024363,0.110126,90805.0,90797.0,0.00313248]
[1731833024567,0.11012,90810.0,90799.0,0.110132]
[1731833024752,0.22023,90815.0,90799.0,0.110132]
[1731833024890,0.22023,90815.0,90796.0,0.220272]
[1731833024891,0.22023,90815.0,90800.0,0.00313177]
[1731833025097,0.110121,90809.0,90797.0,0.110135]
[1731833025288,0.110121,90809.0,90798.0,0.110133]
[1731833025528,0.110121,90809.0,90799.0,0.00999547]
[1731833025729,0.110121,90809.0,90800.0,0.00688349]
[1731833025935,0.110121,90809.0,90801.0,0.00688349]
[1731833026106,0.110121,90809.0,90802.0,0.00688349]
[1731833026458,0.110122,90808.0,90803.0,0.00688349]
[1731833026788,0.110123,90808.0,90804.0,0.00688349]
[1731833027015,0.110123,90808.0,90805.0,0.00688349]
[1731833027202,0.110124,90807.0,90806.0,0.00688349]
[1731833027343,0.110121,90809.0,90806.0,0.00688349]
[1731833027554,0.000204,90824.0,90806.0,0.00688349]
[1731833027758,0.110123,90807.0,90806.0,0.00688349]
[1731833028075,0.220228,90815.0,90806.0,0.00688349]
[1731833028076,0.11012,90810.0,90807.0,0.00312753]
[1731833028290,0.220228,90815.0,90808.0,0.00688329]
[1731833028291,0.110121,90809.0,90808.0,0.00688329]
[1731833028452,0.110121,90809.0,90808.0,0.01789654]
[1731833029668,0.110121,90809.0,90808.0,0.00688329]
[1731833030125,0.110122,90809.0,90808.0,0.00688346]
[1731833032049,0.102122,90809.0,90808.0,0.00688346]
[1731833032697,0.220228,90815.0,90792.0,0.04377048]
[1731833032912,0.110131,90801.0,90793.0,0.00313607]
[1731833033123,0.110131,90801.0,90794.0,0.00688365]
[1731833033540,0.110132,90800.0,90795.0,0.00312895]
[1731833033980,0.110137,90796.0,90795.0,0.00688365]
[1731833034625,0.110141,90792.0,90791.0,0.04500969]
[1731833035064,0.110141,90792.0,90785.0,0.001712]
[1731833035267,0.110143,90791.0,90785.0,0.001712]
[1731833035495,0.110144,90790.0,90785.0,0.001712]
[1731833035725,0.110142,90792.0,90786.0,0.00688441]
[1731833035933,0.110142,90792.0,90787.0,0.00688441]
[1731833036436,0.220267,90799.0,90787.0,0.00688441]
[1731833036668,0.220267,90799.0,90788.0,0.00688441]
[1731833036669,0.110141,90792.0,90788.0,0.00688441]
[1731833036876,0.110141,90792.0,90789.0,0.00688441]
[1731833037106,0.110141,90792.0,90785.0,0.001712]
[1731833037107,0.110141,90792.0,90790.0,0.00688441]
[1731833037337,0.110141,90792.0,90791.0,0.00688441]
[1731833037991,0.220271,90797.0,90791.0,0.00688441]
[1731833038176,0.110141,90792.0,90785.0,0.001712]
[1731833038385,0.110141,90792.0,90786.0,0.00688422]
[1731833038585,0.110141,90792.0,90785.0,0.001712]
[1731833038586,0.110141,90792.0,90787.0,0.00688422]
[1731833038819,0.110141,90792.0,90788.0,0.00688422]
[1731833039044,0.110141,90792.0,90789.0,0.00688422]
[1731833039249,0.220274,90796.0,90789.0,0.00688422]
[1731833039510,0.110141,90792.0,90790.0,0.00688422]
[1731833039726,0.110141,90792.0,90791.0,0.00688422]
[1731833039937,0.110141,90792.0,90791.0,0.01001213]
[1731833040161,0.110141,90792.0,90791.0,0.00688422]
[1731833041753,0.110149,90786.0,90785.0,0.001712]
[1731833042217,0.110144,90790.0,90785.0,0.001712]
[1731833042401,0.0777,90796.0,90785.0,0.001712]
[1731833042402,0.110147,90788.0,90785.0,0.001712]
[1731833042565,0.110148,90787.0,90785.0,0.001712]
[1731833042768,0.110148,90787.0,90786.0,0.01000963]
[1731833042973,0.110148,90787.0,90786.0,0.00688481]
[1731833043333,0.110148,90787.0,90785.0,0.001712]
[1731833043334,0.110149,90786.0,90785.0,0.001712]
[1731833044236,0.16549168,90795.0,90785.0,0.001712]
[1731833044691,0.220278,90794.0,90785.0,0.001712]
[1731833044925,0.110147,90788.0,90786.0,0.00313836]
[1731833045156,0.110147,90787.0,90786.0,0.00313836]
[1731833045371,0.110149,90786.0,90785.0,0.001712]
[1731833045801,0.110147,90787.0,90785.0,0.001712]
[1731833046252,0.110146,90789.0,90785.0,0.001712]
[1731833046449,0.110143,90791.0,90786.0,0.01001932]
[1731833046745,0.110142,90792.0,90786.0,0.01001932]
[1731833046960,0.1268,90796.0,90786.0,0.01001932]
[1731833047174,0.102141,90793.0,90787.0,0.00688449]
[1731833047376,0.102141,90793.0,90788.0,0.00688427]
[1731833047587,0.102141,90793.0,90789.0,0.00688427]
[1731833048039,0.102141,90793.0,90790.0,0.00296689]
[1731833048246,0.110141,90793.0,90790.0,0.00296689]
[1731833048441,0.110138,90795.0,90787.0,0.110147]
[1731833048696,0.110141,90793.0,90791.0,0.00296618]
[1731833048894,0.110139,90794.0,90786.0,0.110148]
[1731833049047,0.11014,90793.0,90790.0,0.00688425]
[1731833049503,0.110139,90794.0,90791.0,0.00296618]
[1731833049635,0.110141,90792.0,90791.0,0.00296618]
[1731833049830,0.110141,90792.0,90791.0,0.00688437]
[1731833050031,0.1268,90796.0,90791.0,0.00688437]
[1731833050296,0.1268,90796.0,90792.0,0.00688437]
[1731833050485,0.110139,90794.0,90793.0,0.00985126]
[1731833050738,0.110139,90794.0,90793.0,0.00688437]
[1731833051852,0.0008563,90811.0,90794.0,0.0792]
[1731833052013,0.16549168,90806.0,90803.0,0.110127]
[1731833052173,0.16549168,90806.0,90801.0,0.01101482]
[1731833052345,0.0008563,90811.0,90804.0,0.00296618]
[1731833052558,0.0008563,90811.0,90801.0,0.01101482]
[1731833052765,0.0008563,90811.0,90805.0,0.00296901]
[1731833052986,0.11012,90810.0,90806.0,0.00688437]
[1731833053180,0.110121,90809.0,90807.0,0.00688437]
[1731833053391,0.110121,90809.0,90808.0,0.00688437]
[1731833053628,0.1109743,90811.0,90808.0,0.00984984]
[1731833053850,0.0008563,90811.0,90808.0,0.00984984]
[1731833054071,0.0008563,90811.0,90809.0,0.00688437]
[1731833054664,0.0008563,90811.0,90810.0,0.00984984]
[1731833055926,0.0008563,90811.0,90810.0,0.11996984]
[1731833056621,0.0008563,90811.0,90810.0,0.13098229]
[1731833058334,0.0008563,90811.0,90810.0,0.13098013]
[1731833061866,0.0008563,90811.0,90810.0,0.11996803]
[1731833062080,0.1029603,90823.0,90810.0,0.02086021]
[1731833062288,0.1029603,90823.0,90815.0,0.110113]
[1731833062511,0.110105,90822.0,90815.0,0.110113]
[1731833062725,0.110106,90822.0,90816.0,0.00292464]
[1731833062942,0.220211,90822.0,90816.0,0.00292464]
[1731833063154,0.110107,90821.0,90817.0,0.00688261]
[1731833063370,0.110107,90821.0,90808.0,0.220243]
[1731833063371,0.069704,90824.0,90810.0,0.01101233]
[1731833063592,0.069704,90824.0,90818.0,0.00292181]
[1731833063796,0.110106,90822.0,90812.0,0.220235]
[1731833064206,0.110106,90822.0,90813.0,0.00980868]
[1731833064417,0.179807,90824.0,90813.0,0.00980868]
[1731833064645,0.0008562,90828.0,90814.0,0.00688263]
[1731833064846,0.0008562,90828.0,90814.0,0.05073995]
[1731833065068,0.0008562,90828.0,90815.0,0.02301054]
[1731833065284,0.0008562,90828.0,90817.0,0.220223]
[1731833065496,0.0008562,90828.0,90818.0,0.01789276]
[1731833065714,0.0008562,90828.0,90818.0,0.0208063]
[1731833066101,0.0008562,90828.0,90827.0,0.110099]
[1731833066334,0.0008562,90828.0,90826.0,0.110099]
[1731833066542,0.0008562,90828.0,90821.0,0.220213]
[1731833066543,0.0008562,90828.0,90827.0,0.00290654]
[1731833066722,0.0008562,90828.0,90827.0,0.0096269]
[1731833066942,0.0008562,90828.0,90827.0,0.00688167]
[1731833067146,0.0008562,90828.0,90827.0,0.00688171]
[1731833067351,0.0008562,90828.0,90827.0,0.00962667]
[1731833067576,0.1109542,90828.0,90827.0,0.00274507]
[1731833067787,0.2378542,90828.0,90827.0,0.00274507]
[1731833068005,0.110112,90816.0,90811.0,0.01101143]
[1731833068249,0.220231,90814.0,90805.0,0.09819933]
[1731833068463,0.1269,90813.0,90812.0,0.00274207]
[1731833068677,0.1269,90813.0,90807.0,0.110123]
[1731833069128,0.1269,90813.0,90808.0,0.00962559]
[1731833069333,0.1269,90813.0,90808.0,0.00274278]
[1731833069748,0.1269,90813.0,90809.0,0.00688281]
[1731833069948,0.1269,90813.0,90807.0,0.110122]
[1731833070233,0.1269,90813.0,90810.0,0.00274201]
[1731833070454,0.1269,90813.0,90801.0,0.220261]
[1731833070455,0.1269,90813.0,90806.0,0.110124]
[1731833070677,0.1269,90813.0,90811.0,0.0027413]
[1731833070883,0.1269,90813.0,90806.0,0.110124]
[1731833071097,0.1269,90813.0,90812.0,0.0027406]
[1731833071302,0.1269,90813.0,90807.0,0.00688266]
[1731833071521,0.237016,90813.0,90808.0,0.0068827]
[1731833071698,0.1269,90813.0,90806.0,0.110124]
[1731833071954,0.110119,90811.0,90809.0,0.00688269]
[1731833072177,0.110119,90811.0,90810.0,0.00688258]
[1731833072992,0.1269,90813.0,90810.0,0.00688258]
[1731833073196,0.110117,90812.0,90811.0,0.00688258]
[1731833074837,0.236417,90812.0,90811.0,0.00688258]
[1731833075059,0.34547955,90812.0,90811.0,1e-08]
[1731833075295,0.110127,90804.0,90803.0,1e-08]
[1731833075526,0.45561855,90804.0,90798.0,0.01101223]
[1731833075741,0.160033,90799.0,90798.0,0.01101223]
[1731833075975,0.34549555,90799.0,90798.0,0.01101223]
[1731833076195,0.34549555,90799.0,90793.0,0.0017122]
[1731833076196,0.186539,90794.0,90793.0,0.0017122]
[1731833076444,0.34750155,90794.0,90793.0,0.0017122]
[1731833076701,0.40198335,90794.0,90793.0,0.0017122]
[1731833076942,0.122143,90791.0,90775.0,0.0017126]
[1731833077156,0.4681347,90791.0,90775.0,0.0017126]
[1731833077370,0.50241448,90791.0,90775.0,0.0017126]
[1731833077595,0.110161,90776.0,90775.0,0.0017126]
[1731833077827,0.4741527,90776.0,90775.0,0.0017126]
[1731833078241,0.110189,90753.0,90752.0,0.00358717]
[1731833079356,0.110187,90754.0,90753.0,0.023]
[1731833079805,0.00141283,90774.0,90753.0,0.023]
[1731833080028,0.110193,90750.0,90748.0,0.02658717]
[1731833080261,0.110193,90750.0,90723.0,0.14724549]
[1731833080262,0.00141283,90770.0,90742.0,0.005]
[1731833080507,0.49868738,90819.0,90747.0,0.00358717]
[1731833080508,0.16549168,90765.0,90747.0,0.00358717]
[1731833080728,0.110182,90759.0,90749.0,0.110193]
[1731833080961,0.00141283,90770.0,90750.0,0.00730893]
[1731833081211,0.220348,90766.0,90751.0,0.11019]
[1731833081439,0.10906255,90765.0,90750.0,0.00730893]
[1731833081678,0.09872465,90802.0,90747.0,0.00358717]
[1731833081679,0.220283,90792.0,90787.0,0.023]
[1731833081915,0.239246,90788.0,90787.0,0.023]
[1731833082162,0.239246,90788.0,90767.0,0.05960938]
[1731833082163,0.1291,90788.0,90772.0,0.023]
[1731833082400,0.1290734,90788.0,90772.0,0.023]
[1731833082604,0.110162,90775.0,90774.0,0.023]
[1731833083333,0.2203,90785.0,90768.0,0.023]
[1731833083558,0.110167,90771.0,90770.0,0.023]
[1731833083779,0.21922955,90771.0,90770.0,0.023]
[1731833083981,0.21922955,90771.0,90770.0,0.02534642]
[1731833084184,0.21922955,90771.0,90768.0,0.023]
[1731833084185,0.110169,90769.0,90768.0,0.023]
[1731833084423,0.21923155,90769.0,90768.0,0.023]
[1731833084567,0.19207,90768.0,90767.0,0.05460938]
[1731833084777,0.30113255,90768.0,90767.0,0.05460938]
[1731833085570,0.34833255,90768.0,90767.0,0.05460938]
[1731833086195,0.47557453,90768.0,90767.0,0.05460938]
[1731833086627,0.57557453,90768.0,90767.0,0.05460938]
[1731833087276,0.110209,90736.0,90735.0,0.05462863]
[1731833087498,0.22038,90752.0,90735.0,0.05462863]
[1731833087701,0.110208,90737.0,90736.0,0.16549168]
[1731833088134,0.110208,90737.0,90736.0,0.00210308]
[1731833088568,0.110208,90737.0,90736.0,0.02510308]
[1731833088770,0.110208,90737.0,90736.0,0.023]
[1731833089479,0.220404,90743.0,90736.0,0.023]
[1731833089706,0.32946655,90743.0,90737.0,0.023]
[1731833089900,0.110206,90739.0,90736.0,0.023]
[1731833090124,0.10906255,90743.0,90739.0,0.023]
[1731833090331,0.110204,90740.0,90739.0,0.023]
[1731833090533,0.110204,90741.0,90736.0,0.023]
[1731833091024,0.12724198,90763.0,90737.0,0.00358717]
[1731833091229,0.110199,90745.0,90740.0,0.023]
[1731833091447,0.220366,90758.0,90740.0,0.023]
[1731833091643,0.110198,90746.0,90740.0,0.023]
[1731833091861,0.110198,90746.0,90740.0,0.133204]
[1731833092084,0.32945155,90749.0,90740.0,0.023]
[1731833092279,0.110198,90746.0,90740.0,0.133203]
[1731833092489,0.32945155,90749.0,90740.0,0.110203]
[1731833092490,0.32245672,90749.0,90740.0,0.110203]
[1731833092692,0.220366,90758.0,90745.0,0.00358717]
[1731833092908,0.1291,90768.0,90747.0,0.110195]
[1731833092909,0.10906255,90757.0,90747.0,0.110195]
[1731833093109,0.10906255,90757.0,90746.0,0.00858717]
[1731833093313,0.10906255,90757.0,90747.0,0.110196]
[1731833093527,0.10906255,90757.0,90751.0,0.11019]
[1731833093718,0.10906255,90757.0,90752.0,0.110189]
[1731833093935,0.10906255,90757.0,90746.0,0.00858717]
[1731833094144,0.10906255,90757.0,90746.0,0.00358717]
[1731833094357,0.110197,90747.0,90746.0,0.00358717]
[1731833094578,0.110201,90743.0,90741.0,0.005]
[1731833094782,0.110199,90745.0,90742.0,0.16549168]
[1731833094987,0.110199,90745.0,90741.0,0.005]
[1731833094988,0.32943055,90757.0,90741.0,0.005]
[1731833095113,0.110196,90747.0,90741.0,0.005]
[1731833095321,0.220371,90756.0,90746.0,0.00358717]
[1731833095521,0.32943555,90755.0,90746.0,0.00358717]
[1731833095728,0.32943555,90755.0,90745.0,0.00358717]
[1731833095729,0.110197,90747.0,90745.0,0.00358717]
[1731833095936,0.110197,90747.0,90746.0,0.00212339]
[1731833096154,0.110198,90746.0,90741.0,0.00858717]
[1731833096360,0.110201,90743.0,90742.0,0.00212615]
[1731833096749,0.3306,90744.0,90740.0,0.04584193]
[1731833096971,0.220399,90745.0,90741.0,0.00212545]
[1731833097184,0.110202,90742.0,90741.0,0.00212545]
[1731833097411,0.110207,90738.0,90737.0,0.0008563]
[1731833098438,0.110207,90738.0,90737.0,0.00286359]
[1731833098623,0.110207,90738.0,90737.0,0.0008563]
[1731833100137,0.110207,90738.0,90737.0,0.00288721]
[1731833100563,0.220407,90741.0,90737.0,0.00288721]
[1731833100564,0.110204,90741.0,90737.0,0.00288721]
[1731833100773,0.0773,90746.0,90737.0,0.0008563]
[1731833100999,0.220402,90743.0,90738.0,0.00203297]
[1731833101226,0.110206,90739.0,90738.0,0.00203297]
[1731833101428,0.110206,90739.0,90737.0,0.0008563]
[1731833101846,0.10906255,90743.0,90738.0,0.00203156]
[1731833102057,0.21926455,90743.0,90738.0,0.00203156]
[1731833102224,0.110202,90742.0,90738.0,0.05462863]
[1731833102448,0.110202,90742.0,90739.0,0.00203368]
[1731833102662,0.10906255,90743.0,90739.0,0.00203368]
[1731833102863,0.220378,90753.0,90739.0,0.00203368]
[1731833103075,0.10906255,90749.0,90740.0,0.110204]
[1731833103303,0.110197,90747.0,90738.0,0.0582158]
[1731833103457,0.10906255,90747.0,90741.0,0.00203651]
[1731833103821,0.10906255,90747.0,90743.0,0.110201]
[1731833104036,0.10906255,90747.0,90744.0,0.110199]
[1731833104268,0.10906255,90747.0,90744.0,0.00203297]
[1731833104582,0.10906255,90747.0,90741.0,0.220407]
[1731833104780,0.10906255,90747.0,90745.0,0.00203226]
[1731833105009,0.10906255,90747.0,90746.0,0.00688827]
[1731833105212,0.10906255,90747.0,90746.0,0.00891983]
[1731833105409,0.110182,90759.0,90747.0,0.55098]
[1731833105616,0.0499,90760.0,90749.0,0.110193]
[1731833105617,0.21924755,90756.0,90749.0,0.110193]
[1731833105915,0.21924755,90756.0,90750.0,0.11222709]
[1731833106144,0.10906255,90756.0,90751.0,0.110191]
[1731833106338,0.10906255,90756.0,90752.0,0.00203432]
[1731833107047,0.16549168,90772.0,90752.0,0.00203432]
[1731833107265,0.110178,90763.0,90756.0,0.110184]
[1731833107466,0.10906255,90762.0,90759.0,0.110181]
[1731833107678,0.10906255,90762.0,90760.0,0.00688827]
[1731833107887,0.10906255,90762.0,90760.0,0.00891711]
[1731833108100,0.0773,90773.0,90761.0,0.16549168]
[1731833108335,0.10906255,90772.0,90769.0,0.110169]
[1731833108618,0.0773,90780.0,90777.0,0.110159]
[1731833108619,0.00561884,90780.0,90777.0,0.110159]
[1731833108793,0.34611915,90790.0,90778.0,0.00688827]
[1731833108965,0.21921155,90786.0,90779.0,0.11704527]
[1731833109169,0.02716449,90785.0,90780.0,0.00887609]
[1731833109383,0.110153,90783.0,90781.0,0.00688827]
[1731833109596,0.02715486,90782.0,90774.0,0.220327]